Cogmind - Beta 16.1 @@@ ROGUE MODE // 2026.03.01 @ 17:49:12 Player: VLAM Result: Destroyed by B-75 Beast with Heavy Plasma Cannon Performance ------------- Evolutions (4) 2000 Regions Visited (11) 2200 Robots Destroyed (92) 460 Value Destroyed (2996) 2996 Prototype IDs (25) 500 Alien Tech Used (0) 0 Bonus (541) 541 TOTAL SCORE: 8697 Bonus ------- Follower Combat Kills 402 Aligned with FarCom 300 Friendly Fire -161 Cogmind --------- Core Integrity 0/850 Matter 244/300 Energy 50/100 System Corruption 29% Temperature Cool (24) Movement Walking (190) Ox1 Location -6/Extension Parts ------- > --- POWER (2) -------- (None) > --- PROPULSION (4) --- Carbon-fiber Leg Flexi-carbon Leg Flexi-carbon Leg Flexi-carbon Leg > --- UTILITY (6) ------ Power Amplifier Power Amplifier Huge Storage Unit > --- WEAPON (3) ------- Long-range Missile Launcher Long-range Missile Launcher Long-range Missile Launcher > --- INVENTORY (25) --- Medium Treads Medium Treads Flexi-carbon Leg Flexi-carbon Leg Power Amplifier Power Amplifier Power Amplifier Triangulator Triangulator Targeting Computer Improved Reaction Control System Phase Shifter EM Shield Gatling Laser Advanced Assault Cannon Long-range Missile Launcher Power Sword Power Sword Power Sword Peak State ------------ > --- POWER ------------ Light Deuterium Engine Improved Deuterium Engine > --- PROPULSION ------- Flexi-carbon Leg Flexi-carbon Leg Flexi-carbon Leg Flexi-carbon Leg > --- UTILITY ---------- Power Amplifier Power Amplifier Power Amplifier Power Amplifier Power Amplifier Energy Filter > --- WEAPON ----------- Shock Rifle Gatling Laser Advanced Assault Cannon > --- INVENTORY -------- Flexi-carbon Leg Flexi-carbon Leg Flexi-carbon Leg Power Amplifier Huge Storage Unit [Rating: 69] Favorites ----------- Power Improved Ion Engine Engine Improved Ion Engine Power Core Fusion Compressor Reactor Antimatter Reactor Propulsion Aluminum Leg Leg Aluminum Leg Utility Large Storage Unit Device Power Amplifier Storage Large Storage Unit Processor Advanced Targeting Computer Hackware Hacking Suite Protection Hardened Medium Armor Plating Weapon Medium Laser Energy Gun Medium Laser Ballistic Gun High-powered Shotgun Ballistic Cannon Assault Cannon Launcher Proton Missile Launcher Build | -11 -10 -10 -10 -9 -8 -8 -7 -6 -6 -6 -6 ------- Run | Yrd Mat Min Exi Min Mat Sto Fac Fac Was Fac Ext Slots Evolved 8 | . . . . . 4 . 2 2 . . . Power 1 | . . . . . 1 . . . . . . Propulsion 2 | . . . . . 1 . 1 . . . . Utility 4 | . . . . . 2 . 1 1 . . . Weapon 1 | . . . . . . . . 1 . . . Parts Attached 95 | 5 2 1 2 . 13 10 20 6 1 7 28 Power 18 | 1 . 1 . . 3 3 3 2 . 2 3 Engine 14 | 1 . 1 . . 3 3 2 1 . . 3 Core 3 | . . . . . . . 1 1 . 1 . Reactor 1 | . . . . . . . . . . 1 . Propulsion 28 | 1 1 . . . 4 4 8 2 . . 8 Treads . | . . . . . . . . . . . . Leg 28 | 1 1 . . . 4 4 8 2 . . 8 Wheel . | . . . . . . . . . . . . Hover . | . . . . . . . . . . . . Flight . | . . . . . . . . . . . . Utility 29 | 1 1 . 2 . 3 1 6 1 . 3 11 Device 19 | . 1 . . . 3 . 2 1 . 2 10 Storage 4 | 1 . . 2 . . . . . . . 1 Processor 1 | . . . . . . . 1 . . . . Hackware 1 | . . . . . . . 1 . . . . Protection 4 | . . . . . . 1 2 . . 1 . Artifact . | . . . . . . . . . . . . Weapon 20 | 2 . . . . 3 2 3 1 1 2 6 Energy Gun 6 | 2 . . . . 1 . . . . 1 2 Energy Cannon . | . . . . . . . . . . . . Ballistic Gun 1 | . . . . . . 1 . . . . . Ballistic Cannon 9 | . . . . . 2 1 2 1 1 1 1 Launcher 4 | . . . . . . . 1 . . . 3 Special Weapon . | . . . . . . . . . . . . Impact Weapon . | . . . . . . . . . . . . Slashing Weapon . | . . . . . . . . . . . . Piercing Weapon . | . . . . . . . . . . . . Special Melee Weapon . | . . . . . . . . . . . . Unidentified Prototypes 1 | . . . . . . . . . . 1 . Corrupted Parts 2 | . . . . . . . . 1 . 1 . System Corruption 6 | . . . . . . . . 1 . 5 . Parts Lost 41 | . . . . . 7 3 4 1 6 7 13 Power 9 | . . . . . 2 1 . 1 1 2 2 Propulsion 12 | . . . . . 4 . 2 . 3 . 3 Utility 16 | . . . . . 1 1 2 . 2 3 7 Weapon 4 | . . . . . . 1 . . . 2 1 Highest Loss Streak 7 | . . . . . 5 1 1 1 4 7 4 To Critical Strikes . | . . . . . . . . . . . . Average Backups 11 | 4 6 8 9 12 13 13 13 13 11 2 6 Power . | . 1 1 1 1 . . . 2 2 1 . Propulsion 2 | 3 4 4 4 4 4 2 1 . . . 2 Utility 2 | . . 1 2 3 1 3 3 3 2 1 3 Weapon 4 | . 1 2 2 3 7 7 7 6 4 . 1 Tool/Special . | . . . . . . . . . . . . Unused Backups 37 | . 1 . . 1 2 2 7 2 7 1 14 Power 2 | . . . . . . . 1 . 1 . . Propulsion 8 | . . . . . . 2 2 . 1 . 3 Utility 13 | . 1 . . 1 . . 2 . 1 1 7 Weapon 14 | . . . . . 2 . 2 2 4 . 4 Tool/Special . | . . . . . . . . . . . . Average Slot Usage (%) 88 | . 93 100 100 100 87 96 95 96 54 22 71 Engine 12 | . 14 14 14 14 14 17 14 12 2 . 5 Leg 25 | . 28 28 28 28 21 25 28 26 12 . 22 Device 16 | . 7 14 14 14 24 22 10 11 5 8 27 Storage 8 | . 14 14 14 14 9 9 7 6 4 . 1 Processor 1 | . . . . . . . 3 6 6 6 1 Hackware 1 | . . . . . . . 5 6 4 . . Protection 2 | . . . . . . 3 6 6 2 . . Energy Gun 8 | . 28 28 28 28 1 . . . 3 3 4 Ballistic Gun 1 | . . . . . . 6 3 . . . . Ballistic Cannon 6 | . . . . . 15 10 8 11 6 . 4 Launcher 1 | . . . . . . . 1 6 2 . 1 Peak Build Rating 69 | 5 7 7 10 11 34 33 46 59 60 31 69 Average Rating 30 | 4 6 7 8 10 26 29 36 55 38 15 51 On Entrance 17 | . 5 7 7 10 11 27 33 43 59 5 3 Avg Prop Armor Cover (%) 14 | . . . . . . . . 3 . . 22 Naked Turns . | . . . . . . . . . . . . Heaviest Build 118 | 12 13 13 28 28 42 51 65 72 67 18 118 Greatest Support 80 | 10 20 20 20 20 36 43 61 63 63 3 80 Greatest Overweight (x) 9 | 3 . . 1 1 1 1 1 1 9 5 1 Average Overweight (x) . | 1 . . . 1 . . . 1 . . . Largest Inventory Capacity 25 | 8 8 8 15 15 15 15 15 15 15 5 25 Average Capacity 12 | 7 8 8 11 15 15 15 15 15 12 5 10 Most Carried 19 | 7 8 8 13 15 15 15 15 15 15 5 19 Average Carried 11 | 5 7 8 9 13 14 14 14 14 11 2 6 Final Capacity 25 | 8 8 8 15 15 15 15 15 15 5 5 25 Final Carried 19 | 7 8 8 13 15 15 15 15 15 5 1 19 Class Distribution -------------------- 45% | Mutant 23% | Scavenger-Mutant 9% | Gunner 8% | Skirmisher 6% | Scavenger-Skirmisher 5% | Commander-Mutant Dominant Class ---------------- Mutant | -10/Materials Mutant | -10/Mines Mutant | -10/Exiles Skirmisher | -9/Mines Scavenger-Skirmisher | -8/Materials Scavenger-Mutant | -8/Storage Scavenger-Mutant | -7/Factory Gunner | -6/Factory Mutant | -6/Waste Mutant | -6/Factory Mutant | -6/Extension Resources | -11 -10 -10 -10 -9 -8 -8 -7 -6 -6 -6 -6 ----------- Run | Yrd Mat Min Exi Min Mat Sto Fac Fac Was Fac Ext Matter Collected 3392 | 220 50 10 . 20 475 533 786 301 280 4 713 Remotely 411 | . . . . . . . . 200 211 . . Salvage Created 3509 | . 99 54 . . 425 734 758 237 564 51 587 Parts 168 | . 2 6 . . 23 53 38 12 6 4 24 Haulers Intercepted 12 | . 1 . . . 2 1 4 . . . 4 Recyclers Shooed 3 | . . . . . . 1 1 1 . . . Parts Field Recycled . | . . . . . . . . . . . . Retrieved Matter . | . . . . . . . . . . . . Parts Self-Destructed . | . . . . . . . . . . . . Prevented . | . . . . . . . . . . . . Parts Restored . | . . . . . . . . . . . . Kills | -11 -10 -10 -10 -9 -8 -8 -7 -6 -6 -6 -6 ------- Run | Yrd Mat Min Exi Min Mat Sto Fac Fac Was Fac Ext Combat Hostiles Destroyed 59 | . 1 3 . . 13 13 16 6 2 1 4 Guns 18 | . . 3 . . 3 6 3 . 1 1 1 Cannons 38 | . . . . . 10 7 13 6 . . 2 AOE 2 | . . . . . . . . . 1 . 1 Classes Destroyed 16 | . 2 1 . . 1 5 2 1 1 1 2 Worker 8 | . . . . . . 1 3 . . . 4 Builder 4 | . . . . . . . 1 1 . . 2 Hauler 12 | . 1 . . . 2 1 4 . . . 4 Recycler 2 | . . . . . . 1 . . . . 1 Mechanic 1 | . . . . . . 1 . . . . . Operator 1 | . . . . . . . . 1 . . . Watcher 4 | . . . . . . 2 1 . . . 1 Swarmer 9 | . . 3 . . 3 . 3 . . . . Grunt 25 | . 1 . . . 6 4 9 5 . . . Brawler 1 | . . . . . . . . . . 1 . Duelist 1 | . . . . . . 1 . . . . . Sentry 15 | . . . . . 4 8 2 . . . 1 Hunter 1 | . . . . . . . . . . . 1 Programmer 4 | . . . . . . . 2 1 . . 1 Behemoth 1 | . . . . . . . . . . . 1 Compactor 2 | . . . . . . . . . 2 . . Thug 1 | . . . . . . . . . 1 . . Best Kill Streak 9 | . 1 3 . . 5 3 5 3 1 1 9 Combat Bots Only 5 | . 1 3 . . 5 3 4 3 1 1 1 Max Kills in Single Turn 8 | . 1 2 . . 1 1 2 1 2 1 8 Gunslinging 1 | . . 1 . . . . . . . . . Exploded 1 | . . . . . . . . . 1 . 1 Melee . | . . . . . . . . . . . . Uniques/NPCs Destroyed . | . . . . . . . . . . . . Combat | -11 -10 -10 -10 -9 -8 -8 -7 -6 -6 -6 -6 -------- Run | Yrd Mat Min Exi Min Mat Sto Fac Fac Was Fac Ext Hostile Shots Fired 739 | . 6 28 . . 88 63 177 19 13 71 274 Missed 243 | . 3 4 . . 16 24 62 3 2 15 114 Hits 496 | . 3 24 . . 72 39 115 16 11 56 160 Melee 15 | . . . . . . 2 . . 11 2 . Projectile 481 | . 3 24 . . 72 37 115 16 . 54 160 Critical Strikes 21 | . . 1 . . 4 1 5 . 4 4 2 Part Disruptions 1 | . . . . . . . . 1 . . . Damage Taken 7189 | . 35 188 . . 980 686 1445 421 503 995 1936 Core 1388 | . 11 54 . . 292 46 109 91 112 352 321 Absorbed by Shields 18 | . . . . . . . . . . . 18 Regen/Repaired (Parts) 30 | . . . . . . 30 . . . . . Core Remaining (%) 74 | 100 . . . 74 . 38 84 . . . . Volleys Fired 258 | . 12 8 1 . 39 48 57 29 5 15 44 Largest 3 | . 2 2 2 . 2 2 2 3 3 2 3 Hottest 166 | . 100 100 100 . 100 74 80 119 119 106 166 Shots Fired 544 | . 24 16 2 . 92 95 105 51 49 23 87 Gun 211 | . 24 16 2 . 16 37 26 . 38 15 37 Cannon 312 | . . . . . 76 58 75 48 8 8 39 Launcher 21 | . . . . . . . 4 3 3 . 11 Special . | . . . . . . . . . . . . Kinetic 375 | . . . . . 76 95 101 48 8 8 39 Thermal 148 | . 24 16 2 . 16 . . . 38 15 37 Explosive 11 | . . . . . . . . . . . 11 Electromagnetic 10 | . . . . . . . 4 3 3 . . Robot Hit Streak 17 | . 6 2 . . 11 6 7 9 17 7 14 Robot Miss Streak 7 | . 3 2 . . 5 3 4 4 1 2 7 Penetration Max 1 | . . . . . . . 1 1 . . . Secondary Targets 1 | . . 1 . . . . . . . . . Max Gunslinging Chain 1 | . . 1 . . . . . . . . . Autonomous 53 | . . . . . 14 . . . 39 . . Shots Hit Robots 346 | . 14 7 . . 55 58 66 25 45 14 62 Core Hits 155 | . 3 3 . . 18 30 33 15 7 4 42 Critical Kills . | . . . . . . . . . . . . Critical Parts Destroyed . | . . . . . . . . . . . . Critical Strikes 18 | . 3 . . . 2 1 4 3 1 1 3 Burn 4 | . 3 . . . . . . . . 1 . Blast 14 | . . . . . 2 1 4 3 1 . 3 Melee Attacks . | . . . . . . . . . . . . Impact . | . . . . . . . . . . . . Slashing . | . . . . . . . . . . . . Piercing . | . . . . . . . . . . . . Sneak Attacks . | . . . . . . . . . . . . Combat Hostiles . | . . . . . . . . . . . . Follow-up Attacks . | . . . . . . . . . . . . Damage Inflicted 10348 | . 174 87 . . 1461 1419 1828 855 1461 300 2763 Guns 3508 | . 174 87 . . 350 523 388 . 1089 197 700 Cannons 5242 | . . . . . 1111 821 1429 839 257 101 684 Explosions 1505 | . . . . . . 74 11 16 115 . 1289 Melee . | . . . . . . . . . . . . Ramming 93 | . . . . . . 1 . . . 2 90 Kinetic 6153 | . . . . . 1111 1344 1817 839 257 101 684 Thermal 2706 | . 174 87 . . 350 . . . 1198 197 700 Explosive 1363 | . . . . . . 74 . . . . 1289 Electromagnetic 33 | . . . . . . . 11 16 6 . . Impact . | . . . . . . . . . . . . Slashing . | . . . . . . . . . . . . Piercing . | . . . . . . . . . . . . Highest Corruption 29 | . . . . . . . 4 2 22 27 29 Average Corruption 14 | . . . . . . . 1 1 12 24 28 Corruption Purged . | . . . . . . . . . . . . Corruption Blocked . | . . . . . . . . . . . . Effects 119 | . . . . . . . 13 6 14 8 78 Message Errors 25 | . . . . . . . 1 1 1 3 19 Matter Fused 30 | . . . . . . . 4 3 5 . 18 Heat Flow Errors 15 | . . . . . . . 1 1 1 1 11 Energy Discharges 7 | . . . . . . . 2 1 . 1 3 Parts Rejected 2 | . . . . . . . . . 1 . 1 Data Loss (minor) 19 | . . . . . . . 2 . 2 . 15 Data Loss (major) 5 | . . . . . . . 2 . 1 . 2 Misfires 3 | . . . . . . . . . . 2 1 Alerts 3 | . . . . . . . 1 . . . 2 Misdirections 7 | . . . . . . . . . 3 . 4 Weapon Failures 3 | . . . . . . . . . . 1 2 Overload Shots . | . . . . . . . . . . . . Overflow Damage 217 | . . . . . 16 25 18 92 . . 66 Projectiles 130 | . . . . . 16 17 18 53 . . 26 Explosions 84 | . . . . . . 8 . 39 . . 37 Melee 3 | . . . . . . . . . . . 3 Knockbacks 36 | . . . . . 2 4 14 13 . . 3 Impact 2 | . . . . . . . . . . . 2 Kinetic 29 | . . . . . 1 4 13 10 . . 1 Secondary 5 | . . . . . 1 . 1 3 . . . Self-Inflicted Damage 270 | . . . . . . 50 . 138 25 1 56 Shots 5 | . . . . . . 1 . 2 1 . 1 Rammed 24 | . . . . . . . . . . 1 23 Targets Rammed 25 | . . . . . . 1 . . . 1 23 Kicked 1 | . . . . . . 1 . . . . . Crushed . | . . . . . . . . . . . . Highest Temperature 482 | . 195 234 39 . 167 135 432 197 204 482 253 Average Temperature 84 | . 69 113 20 . 63 36 104 58 51 278 81 Received Heat Transfer 2223 | . 18 . . . 477 261 672 99 . 435 261 Effects 11 | . . . . . . . 5 . . 6 . Shutdowns 5 | . . . . . . . 3 . . 2 . Energy Bleed 1 | . . . . . . . 1 . . . . Interference 1 | . . . . . . . . . . 1 . Matter Decay 1 | . . . . . . . 1 . . . . Short Circuit 1 | . . . . . . . . . . 1 . Damage (minor) 2 | . . . . . . . . . . 2 . Siege Activations . | . . . . . . . . . . . . Martial Activations . | . . . . . . . . . . . . Shielding Activations . | . . . . . . . . . . . . Robots Disrupted . | . . . . . . . . . . . . Combat Hostiles . | . . . . . . . . . . . . Robots Corrupted . | . . . . . . . . . . . . Combat Hostiles . | . . . . . . . . . . . . Parts Fried . | . . . . . . . . . . . . Impact Corruptions 1 | . . . . . . . . . . . 1 Robots Melted 1 | . 1 . . . . . . . . . . Combat Hostiles 1 | . 1 . . . . . . . . . . Parts Melted 5 | . 2 2 . . 1 . . . . . . Heat Transferred 4906 | . 740 259 . . 444 . . . 1469 444 1550 Parts Sabotaged . | . . . . . . . . . . . . Parts Stolen . | . . . . . . . . . . . . Parts Stripped . | . . . . . . . . . . . . Power Chain Reactions 1 | . . . . . . . . . 1 . . Alert | -11 -10 -10 -10 -9 -8 -8 -7 -6 -6 -6 -6 ------- Run | Yrd Mat Min Exi Min Mat Sto Fac Fac Was Fac Ext Maximum Alert Level 1 | . . . . . 1 . 1 1 . . . Low Security (%) 93 | 100 100 100 . 100 87 100 89 66 100 100 100 Level 1 6 | . . . . . 12 . 10 33 . . . Level 2 . | . . . . . . . . . . . . Level 3 . | . . . . . . . . . . . . Level 4 . | . . . . . . . . . . . . Level 5 . | . . . . . . . . . . . . High Security . | . . . . . . . . . . . . Max Security . | . . . . . . . . . . . . Peak Influence 262 | . 20 60 . . 226 195 262 247 72 41 77 Initial 125 | . . . . . . 27 80 125 72 . 1 Average 71 | . 1 34 . . 120 56 126 174 21 6 12 Influence Increases 2865 | . 34 70 . . 432 602 913 346 8 65 395 Destroy 0b10 Robot/C 1360 | . 20 60 . . 260 300 500 120 . 20 80 Destroy 0b10 Robot/NC 185 | . 5 . . . 10 30 70 10 . . 60 Destroy Leader 408 | . 2 10 . . 74 106 154 20 . 10 32 Allied During Kill 167 | . . . . . . 76 89 . . . 2 Successful Hack 23 | . 7 . . . . 5 . . . 4 7 Disable Machine 240 | . . . . . 15 30 30 150 . . 15 Destroy Structure 137 | . . . . . 13 25 10 46 8 1 34 Partial Spotted 15 | . . . . . . . . . . . 15 Lose Combat Pursuer 330 | . . . . . 60 30 60 . . 30 150 Influence Decreases 2803 | . 34 40 30 . 367 490 834 395 215 61 337 Entered New Map 434 | . . . 30 . . 38 97 131 135 . 3 Time Decay 1942 | . 34 40 . . 306 416 561 254 41 20 270 Lost Part 267 | . . . . . 61 26 40 10 39 41 50 Lost Ally 160 | . . . . . . 10 136 . . . 14 Squads Dispatched 19 | . 1 . . . 5 1 8 3 . . 1 Investigation 2 | . . . . . . . 2 . . . . Extermination 4 | . . . . . . . 3 1 . . . Reinforcement 10 | . 1 . . . 2 1 3 2 . . 1 Assault . | . . . . . . . . . . . . Garrison 3 | . . . . . 3 . . . . . . Intercept . | . . . . . . . . . . . . Searches Triggered . | . . . . . . . . . . . . Construction Impeded 3 | . . . . . . . 1 1 . . 1 Haulers Reinforced 1 | . . . . . . . 1 . . . . Active Scanning Responses . | . . . . . . . . . . . . Cargo Convoy Interrupts . | . . . . . . . . . . . . Stealth | -11 -10 -10 -10 -9 -8 -8 -7 -6 -6 -6 -6 --------- Run | Yrd Mat Min Exi Min Mat Sto Fac Fac Was Fac Ext Distress Signals 12 | . . . . . 3 1 5 . . 1 2 Communications Jammed . | . . . . . . . . . . . . Distress Signals . | . . . . . . . . . . . . Times Spotted 122 | . 2 3 . . 18 20 34 9 6 10 20 Peak Tracking Total 9 | . 2 3 . . 6 4 4 3 4 8 9 Tactical Retreats 14 | . . . . . 1 2 4 . . 1 6 Traps | -11 -10 -10 -10 -9 -8 -8 -7 -6 -6 -6 -6 ------- Run | Yrd Mat Min Exi Min Mat Sto Fac Fac Was Fac Ext Traps Triggered 2 | . . . . . . . . 2 . . . Indirectly 1 | . . . . . . . . 1 . . . Trap Hack Attempts . | . . . . . . . . . . . . Triggered . | . . . . . . . . . . . . Disarmed . | . . . . . . . . . . . . Reprogrammed . | . . . . . . . . . . . . Reused . | . . . . . . . . . . . . Traps Extracted . | . . . . . . . . . . . . Installed . | . . . . . . . . . . . . Triggered . | . . . . . . . . . . . . Machines | -11 -10 -10 -10 -9 -8 -8 -7 -6 -6 -6 -6 ---------- Run | Yrd Mat Min Exi Min Mat Sto Fac Fac Was Fac Ext Machines Disabled 18 | . . . . . 1 2 2 10 . . 3 Max in Single Turn 5 | . . . . . 1 1 1 5 . . 1 Machines Repaired . | . . . . . . . . . . . . Machines Dismantled . | . . . . . . . . . . . . Machines Sabotaged . | . . . . . . . . . . . . Overloaded Fab Kills . | . . . . . . . . . . . . Hacking | -11 -10 -10 -10 -9 -8 -8 -7 -6 -6 -6 -6 --------- Run | Yrd Mat Min Exi Min Mat Sto Fac Fac Was Fac Ext Machines Accessed 19 | . 2 . 4 . 2 2 5 1 . 1 2 Terminals 12 | . 2 . . . 1 1 4 1 . 1 2 Fabricators 1 | . . . . . . . 1 . . . . Repair Stations 1 | . . . . . . 1 . . . . . Recycling Units . | . . . . . . . . . . . . Scanalyzers 1 | . . . . . 1 . . . . . . Garrison Access . | . . . . . . . . . . . . Total Hacks 56 | . 4 . 28 . 5 3 11 1 . 2 2 Successful 44 | . 2 . 28 . 3 3 4 1 . 1 2 Failed 12 | . 2 . . . 2 . 7 . . 1 . Catastrophic 3 | . 1 . . . . . 2 . . . . Database Lockouts . | . . . . . . . . . . . . Manual 3 | . . . 1 . . 2 . . . . . Terminals 21 | . 4 . . . 2 1 9 1 . 2 2 Fabricators 2 | . . . . . . . 2 . . . . Repair Stations 2 | . . . . . . 2 . . . . . Recycling Units . | . . . . . . . . . . . . Scanalyzers 3 | . . . . . 3 . . . . . . Garrison Access . | . . . . . . . . . . . . Terminal Hacks 39 | . 2 . 28 . 1 1 3 1 . 1 2 Record 28 | . 1 . 27 . . . . . . . . Open Door 2 | . . . . . . . . . . 1 1 Open DSF 2 | . . . . . . . 1 1 . . . Fabricator Index 1 | . . . . . . . 1 . . . . Recall Investigation 1 | . . . . . 1 . . . . . . Hauler Manifests 2 | . 1 . . . . 1 . . . . . Zone Layout 2 | . . . . . . . 1 . . . 1 Proto ID Catalog 1 | . . . 1 . . . . . . . . Fabricator Hacks 1 | . . . . . . . 1 . . . . Network Status 1 | . . . . . . . 1 . . . . Repair Station Hacks 2 | . . . . . . 2 . . . . . Scan Component 1 | . . . . . . 1 . . . . . Repair 1 | . . . . . . 1 . . . . . Recycling Unit Hacks . | . . . . . . . . . . . . Scanalyzer 2 | . . . . . 2 . . . . . . Insert Component 1 | . . . . . 1 . . . . . . Analyze 1 | . . . . . 1 . . . . . . Garrison Access Hacks . | . . . . . . . . . . . . Unauthorized Hacks . | . . . . . . . . . . . . Terminals . | . . . . . . . . . . . . Fabricators . | . . . . . . . . . . . . Repair Stations . | . . . . . . . . . . . . Recycling Units . | . . . . . . . . . . . . Scanalyzers . | . . . . . . . . . . . . Garrison Access . | . . . . . . . . . . . . Data Cores Recovered . | . . . . . . . . . . . . Used . | . . . . . . . . . . . . Hacking Detections 12 | . 2 . . . 2 2 4 . . 1 1 Full Trace Events 2 | . . . . . . . 2 . . . . Feedback Events . | . . . . . . . . . . . . Feedback Blocked . | . . . . . . . . . . . . Robot Schematics Acquired . | . . . . . . . . . . . . Robots Built . | . . . . . . . . . . . . Authchips . | . . . . . . . . . . . . Time . | . . . . . . . . . . . . Total Robot Build Rating . | . . . . . . . . . . . . Part Schematics Acquired 1 | . . . . . 1 . . . . . . Parts Built . | . . . . . . . . . . . . Authchips . | . . . . . . . . . . . . Time . | . . . . . . . . . . . . Total Part Build Rating . | . . . . . . . . . . . . Part Studies Acquired . | . . . . . . . . . . . . Parts Repaired 1 | . . . . . . 1 . . . . . Time 26 | . . . . . . 26 . . . . . Parts Recycled . | . . . . . . . . . . . . Recycled Matter . | . . . . . . . . . . . . Retrieved Matter . | . . . . . . . . . . . . Retrieved Components . | . . . . . . . . . . . . Parts Scanalyzed 1 | . . . . . 1 . . . . . . Part Schematics Acquired 1 | . . . . . 1 . . . . . . Parts Damaged . | . . . . . . . . . . . . Bothacking | -11 -10 -10 -10 -9 -8 -8 -7 -6 -6 -6 -6 ------------ Run | Yrd Mat Min Exi Min Mat Sto Fac Fac Was Fac Ext Used RIF Installer . | . . . . . . . . . . . . Robots Hacked . | . . . . . . . . . . . . Non-combat . | . . . . . . . . . . . . Combat . | . . . . . . . . . . . . Robot Hacks Applied . | . . . . . . . . . . . . Relay Couplers Released . | . . . . . . . . . . . . Fabnet Peak Effective % . | . . . . . . . . . . . . Robots Rewired . | . . . . . . . . . . . . Allies Hacked 1 | . . . . . . . 1 . . . . Hacks Repelled . | . . . . . . . . . . . . Allies | -11 -10 -10 -10 -9 -8 -8 -7 -6 -6 -6 -6 -------- Run | Yrd Mat Min Exi Min Mat Sto Fac Fac Was Fac Ext Total Allies 12 | . . . . . . 10 . . 1 . 1 Largest Group 10 | . . . . . . 10 10 . 1 . 1 Highest-Rated Group 173 | . . . . . . 173 173 . 31 . 25 Highest-Rated Ally 31 | . . . . . . 29 29 . 31 . 25 Total Orders . | . . . . . . . . . . . . Ally Attacks 140 | . . . . . . 17 119 . 3 . 1 Total Damage 1727 | . . . . . . 259 1391 . 41 . 36 Kills 16 | . . . . . . 2 14 . . . . Allies Corrupted . | . . . . . . . . . . . . Allies Melted . | . . . . . . . . . . . . Intel | -11 -10 -10 -10 -9 -8 -8 -7 -6 -6 -6 -6 ------- Run | Yrd Mat Min Exi Min Mat Sto Fac Fac Was Fac Ext Active Infowar (turns) 3103 | . 228 99 991 500 643 554 . . . 88 . Sensors 1051 | . . . . . 497 554 . . . . . Terrain 2051 | . 228 99 991 500 146 . . . . 87 . Jamming 3 | . . . . . . . . . . 3 . Robot Analysis Total . | . . . . . . . . . . . . Derelict Logs Recovered 1 | . . 1 . . . . . . . . . Drone Launches 4 | . . . . . 1 3 . . . . . Drone Recoveries 3 | . . . . . 1 2 . . . . . Exploration | -11 -10 -10 -10 -9 -8 -8 -7 -6 -6 -6 -6 ------------- Run | Yrd Mat Min Exi Min Mat Sto Fac Fac Was Fac Ext Turns Passed 7904 | 95 392 99 991 500 738 1073 1738 550 230 141 1357 Spaces Moved 4227 | 47 287 60 666 262 285 397 869 230 152 136 836 Core 464 | 20 . . . . . . . . 77 136 231 Treads . | . . . . . . . . . . . . Legs 3763 | 27 287 60 666 262 285 397 869 230 75 . 605 Wheels . | . . . . . . . . . . . . Hover . | . . . . . . . . . . . . Flight . | . . . . . . . . . . . . Fastest Speed 50 | 50 120 120 120 190 120 120 122 190 50 50 50 Average Speed 151 | 166 120 120 147 190 180 189 168 190 135 67 112 Slowest Speed 500 | 200 120 120 190 190 190 193 193 190 500 300 190 Overloaded Moves . | . . . . . . . . . . . . Propulsion Burnouts . | . . . . . . . . . . . . Robots Hopped . | . . . . . . . . . . . . Potential Cave-ins . | . . . . . . . . . . . . Cave-ins Triggered . | . . . . . . . . . . . . Exploration Rate (%) 34 | 3 32 19 94 47 23 49 25 7 82 4 32 Regions Visited 11 Branch Regions 5 Pre-discovered Areas 2 | . . 1 1 . . . . . . . . Known Exits Taken . | . . . . . . . . . . . . Unknown Exits Taken 9 | 1 1 1 1 1 1 1 1 . . 1 . Scrap Searched 1 | . . . . 1 . . . . . . . Spaces Dug . | . . . . . . . . . . . . Terrain Destroyed 172 | . . . . . 10 24 8 65 9 . 56 Melee . | . . . . . . . . . . . . Projectile 48 | . . . . . 10 8 8 14 2 . 6 AOE 124 | . . . . . . 16 . 51 7 . 50 Terrain Rammed . | . . . . . . . . . . . . Walls Destroyed . | . . . . . . . . . . . . Machines Disabled . | . . . . . . . . . . . . Actions | -11 -10 -10 -10 -9 -8 -8 -7 -6 -6 -6 -6 --------- Run | Yrd Mat Min Exi Min Mat Sto Fac Fac Was Fac Ext Total 5254 | 62 310 71 675 265 431 625 1040 298 169 161 1147 Wait 533 | 4 6 2 1 . 78 158 64 25 4 . 191 Move 4217 | 46 286 59 665 261 284 396 868 230 151 135 836 Hop . | . . . . . . . . . . . . Pick Up 67 | 7 3 . 3 3 9 3 9 4 2 2 22 Fast Attach 45 | 5 1 . . . 6 4 8 . . 2 19 Attach 27 | . 1 . . . 7 2 1 4 2 5 5 Detach 5 | . . . . . 3 1 . . . . 1 Swap 27 | . . 1 2 . . 5 11 3 . . 5 Drop 47 | . 1 1 1 1 5 7 22 3 4 1 1 Fire 258 | . 12 8 1 . 39 48 57 29 5 15 44 Melee . | . . . . . . . . . . . . Ram 25 | . . . . . . . . . 1 1 23 Kick 1 | . . . . . . 1 . . . . . Crush . | . . . . . . . . . . . . Escape Stasis . | . . . . . . . . . . . . Rewire 2 | . . . 2 . . . . . . . . Trap . | . . . . . . . . . . . . Miscellaneous . | . . . . . . . . . . . . Route ------- -11/Scrapyard -10/Materials -10/Mines -10/Exiles (discovered 2 exits: [*Min x2]) -9/Mines -8/Materials -8/Storage -7/Factory -6/Factory -6/Waste -6/Factory (discovered 2 exits: [*Fac] / *Ext) -6/Extension History --------- Turn | Location | Event 25 | -11/Scrapyard | Discovered new exit (range 16) 96 | -11/Scrapyard | Entered Materials 300 | -10/Materials | Build established: Mutant 380 | -10/Materials | Discovered new exit (range 15) 488 | -10/Materials | Entered Mines 490 | -10/Mines | Met a Derelict bent on vengeance 582 | -10/Mines | Deemed a non-threat by the Exiles lab entrance 582 | -10/Mines | Discovered new exit (range 5) 587 | -10/Mines | Entered Exiles 604 | -10/Exiles | Discovered new exit (range 15) 642 | -10/Exiles | Met 8R-AWN 664 | -10/Exiles | Met EX-HEX 752 | -10/Exiles | Met EX-DEC 781 | -10/Exiles | Visited The Gauntlet 974 | -10/Exiles | Learned location of Zion (-6) 1053 | -10/Exiles | Discovered new exit (range 14) 1186 | -10/Exiles | Met EX-BIN 1243 | -10/Exiles | Aligned with FarCom system 1244 | -10/Exiles | Given EX-Vault access code 1339 | -10/Exiles | Opened EX-Vault 1351 | -10/Exiles | Found AWS/Thermal 1359 | -10/Exiles | Found Supersonic Drone Bay 1440 | -10/Exiles | Warned to stay clear of 0b10 Research branches 1578 | -10/Exiles | Stole two prototypes: Supersonic Drone Bay, AWS/Thermal 1578 | -10/Exiles | Entered Mines 1864 | -9/Mines | Build established: Skirmisher 2036 | -9/Mines | Discovered new exit (range 7) 2078 | -9/Mines | Entered Materials 2078 | -8/Materials | Evolved 4 slots: Power x1, Propulsion x1, Utility x2 2279 | -8/Materials | Lost 5 parts (2p2n1u) 2484 | -8/Materials | Met 7R-MNS 2615 | -8/Materials | Core integrity fell below 50% 2617 | -8/Materials | Build established: Scavenger-Skirmisher 2797 | -8/Materials | Discovered new exit (range 6) 2816 | -8/Materials | Entered Storage 2818 | -8/Storage | FarCom data flow suspended 2861 | -8/Storage | Repaired Aluminum Leg 3158 | -8/Storage | Build established: Scavenger-Mutant 3700 | -8/Storage | Assisted by bots powering up and referring to "LRC-V3" 3756 | -8/Storage | Discovered new exit (range 16) 3889 | -8/Storage | Entered Factory 3889 | -7/Factory | Accompanied by 10 allies 3889 | -7/Factory | Evolved 2 slots: Propulsion x1, Utility x1 4006 | -7/Factory | Build established: Commander-Mutant 4462 | -7/Factory | Lost 3 allies 4469 | -7/Factory | Build established: Scavenger-Mutant 5376 | -7/Factory | Build established: Mutant 5610 | -7/Factory | Discovered new exit (range 8) 5627 | -7/Factory | Entered another Factory area 5627 | -6/Factory | Evolved 2 slots: Utility x1, Weapon x1 6012 | -6/Factory | Build established: Gunner 6177 | -6/Factory | Sucked down chute 6177 | -6/Factory | Entered Waste 6178 | -6/Waste | Met a frightened Derelict 6192 | -6/Waste | EMP discharged 6192 | -6/Waste | System corruption reached 10% 6199 | -6/Waste | Spotted C-40 Crusher 6208 | -6/Waste | Destroyed C-40 Crusher 6218 | -6/Waste | Spotted C-40 Crusher 6249 | -6/Waste | Crushed by Compactor (1 part destroyed, 1 dropped) 6252 | -6/Waste | Crushed by Compactor (1 part destroyed, 2 dropped) 6256 | -6/Waste | Crushed by Compactor (1 part destroyed, 1 dropped) 6262 | -6/Waste | Crushed by Compactor (0 parts destroyed, 1 dropped) 6267 | -6/Waste | Crushed by Compactor (1 part destroyed, 1 dropped) 6282 | -6/Waste | Destroyed C-40 Crusher 6292 | -6/Waste | EMP discharged 6296 | -6/Waste | Spotted C-40 Crusher 6298 | -6/Waste | Lost 4 parts (1p2n1u) 6306 | -6/Waste | AWS/Thermal suddenly broke down 6333 | -6/Waste | Spotted C-40 Crusher 6336 | -6/Waste | Crushed by Compactor (0 parts destroyed, 1 dropped) 6344 | -6/Waste | Crushed by Compactor (1 part destroyed) 6383 | -6/Waste | Spotted C-40 Crusher 6384 | -6/Waste | Spotted C-40 Crusher 6392 | -6/Waste | EMP discharged 6400 | -6/Waste | Discovered new exit (range 14) 6407 | -6/Waste | Entered Factory 6533 | -6/Factory | Discovered new exit (range 13) 6534 | -6/Factory | Core integrity fell below 50% 6547 | -6/Factory | Discovered new exit (range 5) 6548 | -6/Factory | Entered Extension 6559 | -6/Extension | Lost 7 parts (2p3u2w) 6607 | -6/Extension | Build established: Mutant 6623 | -6/Extension | Disrupted transfer network 6628 | -6/Extension | Spotted B-75 Beast 6779 | -6/Extension | Core integrity fell below 20% 6927 | -6/Extension | Rescued a captive Derelict 7105 | -6/Extension | Spotted B-75 Beast 7149 | -6/Extension | Lost 3 parts (1n1u1w) 7226 | -6/Extension | Lost 3 parts (1p2n) 7881 | -6/Extension | Destroyed B-75 Beast 7905 | -6/Extension | Destroyed by B-75 Beast with Heavy Plasma Cannon Last Messages --------------- 07886_ U-05 Engineer lays Concrete. 07888_ Kinecellerator destroyed. 07888_ Critical hit (Blast). 07888_ U-05 Engineer lays Concrete. 07888_ R-10 Processor collects Energy Well. 07889_ U-05 Engineer lays Concrete. 07889_ Acquired 6 matter. 07890_ U-05 Engineer lays Concrete. 07892_ R-10 Processor collects Energy Well. 07892_ U-05 Engineer lays Concrete. 07900_ R-10 Processor collects Wheel. 07900_ U-05 Engineer lays Concrete. 07901_ N:&O3<32KI8DDLYEBAP% O 07901_ U-05 Engineer lays Concrete. 07902_ Acquired 6 matter. 07903_ U-05 Engineer lays Concrete. 07904_ R-10 Processor collects Structural Scanner. 07904_ Acquired 86 matter. 07905_ Power Amplifier destroyed. 07905_ U-05 Engineer lays Concrete. Map ----- +----------------------------------------------------+ | ?????????????????????????????????????????????????? | | ?????????????????????????????????????????????????? | | ?????????????????????????????????????????????????? | | ?????????????????????????????????????????????????? | | ?????????????????????????????????????????????????? | | ?????????????????????????????????????????????????? | | ?????????????????????????????????????????????????? | | ?????????????????????????????????????????????????? | | ?????????????????????????????????????????????????? | | ?????????????????????????????????????????????????? | | ?????????????????????????????????????????????????? | | ?????????????????????????????????????????????????? | | ?????????????????????????????????????????????????? | | ?????????????????????????????????????????????????? | | ?????????????????????????????????????????????????? | | ???????????????????????????????#???#?????????????? | | ?????????????????????????????? ### ## ???????????? | | ?????????????????????????????" ""Y Y ???????????? | | ?????????????????????????????" " ??????????? | | ???????????????????????????? A ??????????? | | ?????????###????????###????# A A ??????????? | | #####################;#####; ?????????? | | %% ?????????? | | % % ????????? | | % u ????????? | | @ u ????????? | | % % k ut = ????????? | | ######################### R = BB????????? | | ???????????????##??????? # B?????????? | | ????????????????????????# ?????????? | | ????????????????????????# ??????????? | | ?????????????????????????## ??????????? | | ???????????????????????????### #"""#??????????? | | ??????????????????????????????#####??????????????? | | ?????????????????????????????????????????????????? | | | | | | | | | | | | | | | | | | | | | | | | | | | | | | | +----------------------------------------------------+ Best States ------------- Heat Dissipation 37 Energy Generation 49 Energy Capacity 525 Matter Stores 300 Matter Capacity 300 Sight Range 16 Robot Scan Range 14 Terrain Scan Range 20 Terrain Scan Density 10 Power Amplification 100 Additional Mass Support 6 Armor Coverage 225 Resistance: EM 25 Evasion (%) 65 Targeting Accuracy 8 Energy Filtering 30 Kinecelleration 30 Offensive Hacking 10 Item Schematics ----------------- Hvy. EM Shotgun | -8/Materials | Scanalyzed Robot Schematics ------------------ None Fabricated ------------ Nothing Repaired ---------- Aluminum Leg | 66% | -8/Storage Studied --------- None Alien Tech Used ----------------- None Achievements -------------- Drive-By Librarian Morally Flexible Sixth Sense The More The Merrier Challenges ------------ None Game ------ Seed ConceptImprovedMatterbank Manual? 0 Play Time 01:31:05 Cumulative 19.7 hours Start 2026.02.28 @ 18:21:47 End 2026.03.01 @ 17:49:12 Sessions 17 Manual Loads 0 Difficulty Rogue Special Mode None Game No. 32 Rogue 32 Adventurer 0 Explorer 0 Win Type - Total 0 Types 0/0/0/0/0/0/0/0/0/0 Lore% 5 Gallery% 19 Achievement% 14 Wizard Run 0 Options --------- Layout 0 ASCII 0 Keyboard 1 Movement Numpad Keybinds 0 Fullscreen 2 Font 24/Smallcaps Map View 76x50 Zoom Use 0% Tactical HUD 1 Map Filters NONE Filters NONE Steam 1 RUN: 6b97d1a0-a677-4167-a8e5-ed074669a42e